bitfinex-derivatives/quotes_BTCF0:USTF0_20251219
["timestamp","ask_amount","ask_price","bid_price","bid_amount"]
[1766140674219,1.24e-06,88058.0,88048.0,0.0113636]
[1766140674625,1.24e-06,88058.0,88045.0,0.01153425]
[1766140675523,1.24e-06,88058.0,88045.0,0.00017035]
[1766140680420,1.24e-06,88058.0,88046.0,0.0113639]
[1766140681826,1.24e-06,88058.0,88048.0,0.0113636]
[1766140683815,1.24e-06,88058.0,88050.0,0.0113634]
[1766140684520,1.24e-06,88058.0,88047.0,0.0113637]
[1766140685729,1.24e-06,88058.0,88045.0,0.00017035]
[1766140686828,0.01136354,88058.0,88045.0,0.00017035]
[1766140687021,1.24e-06,88058.0,88046.0,0.0113639]
[1766140696744,1.24e-06,88058.0,88045.0,0.00017035]
[1766140697229,0.01136374,88058.0,88045.0,0.00017035]
[1766140697429,0.0113626,88057.0,88045.0,0.00017035]
[1766140698141,0.0113627,88055.0,88045.0,0.00017035]
[1766140703362,1.24e-06,88058.0,88030.0,0.00568]
[1766140703363,0.011364,88046.0,88030.0,0.00568]
[1766140703555,0.00568,88049.0,88030.0,0.00568]
[1766140704065,0.011364,88046.0,88033.0,0.0113655]
[1766140704561,0.0170435,88049.0,88033.0,0.0113655]
[1766140704966,0.0170435,88049.0,88035.0,0.0113653]
[1766140709261,0.0113638,88047.0,88032.0,0.0113656]
[1766140709971,0.0113638,88047.0,88034.0,0.0113653]
[1766140710873,0.00568,88049.0,88034.0,0.0113653]
[1766140712164,0.0113637,88048.0,88034.0,0.0113653]
[1766140712974,0.00568,88049.0,88036.0,0.0113651]
[1766140716276,0.0170435,88049.0,88036.0,0.0113651]
[1766140716974,0.00568,88049.0,88036.0,0.0113651]
[1766140718880,0.011364,88046.0,88034.0,0.0113654]
[1766140720883,0.00568,88049.0,88031.0,0.00017035]
[1766140721780,0.011364,88046.0,88031.0,0.00017035]
[1766140722080,0.011364,88046.0,88032.0,0.0113657]
[1766140725288,0.0170436,88049.0,88034.0,0.0113653]
[1766140726487,0.0113638,88047.0,88034.0,0.0113653]
[1766140726681,0.0113638,88047.0,88031.0,0.01153605]
[1766140727883,0.0113641,88045.0,88031.0,0.01153605]
[1766140728291,0.0113643,88043.0,88031.0,0.00017035]
[1766140729289,0.0113643,88043.0,88031.0,0.01153615]
[1766140730488,0.0113643,88043.0,88031.0,0.01721615]
[1766140733083,0.011364,88046.0,88031.0,0.01721615]
[1766140733692,0.011364,88046.0,88033.0,0.0113656]
[1766140736395,0.011364,88046.0,88031.0,0.00585035]
[1766140737188,0.011364,88046.0,88033.0,0.0113656]
[1766140738993,0.00568,88049.0,88039.0,0.0113648]
[1766140739198,0.00568,88048.0,88041.0,0.0113645]
[1766140739996,0.0113628,88055.0,88041.0,0.0113645]
[1766140740197,0.00568,88054.0,88041.0,0.0113645]
[1766140741393,0.0113628,88055.0,88041.0,0.0113645]
[1766140741702,0.00568,88054.0,88041.0,0.0113645]
[1766140744196,0.0170429,88054.0,88040.0,0.51148768]
[1766140744399,0.0170429,88054.0,88038.0,0.0113649]
[1766140744997,0.0113632,88052.0,88037.0,0.011365]
[1766140745793,0.00568,88054.0,88037.0,0.011365]
[1766140746097,0.00568,88054.0,88039.0,0.0113647]
[1766140746296,0.00568,88054.0,88031.0,0.00585035]
[1766140748105,0.011363,88053.0,88036.0,0.0113651]
[1766140749205,0.011363,88053.0,88038.0,0.0113649]
[1766140753208,0.0113633,88051.0,88038.0,0.0113649]
[1766140753511,0.00568,88050.0,88035.0,0.0113652]
[1766140753806,0.0113635,88049.0,88035.0,0.0113652]
[1766140755008,0.00568,88050.0,88037.0,0.011365]
[1766140758113,0.00568,88050.0,88031.0,0.00585035]
[1766140758316,0.0113638,88047.0,88033.0,0.0113655]
[1766140758516,0.51716768,88050.0,88031.0,0.00585035]
[1766140759415,0.00568,88050.0,88031.0,0.00585035]
[1766140759723,0.0113642,88044.0,88031.0,0.00585035]
[1766140763216,0.0113644,88042.0,88031.0,0.00585035]
[1766140764112,0.51716768,88050.0,88031.0,0.00585035]
[1766140765225,0.0113646,88041.0,88031.0,0.00585035]
[1766140766724,0.0113649,88039.0,88031.0,0.00585035]
[1766140767928,0.0113649,88039.0,88022.0,2.38704]
[1766140767929,0.0113654,88035.0,88020.0,0.0113672]
[1766140768114,0.0113652,88036.0,88021.0,0.00568]
[1766140768622,0.0113655,88034.0,88021.0,0.00568]
[1766140769325,0.0113652,88037.0,88022.0,0.011367]
[1766140772226,0.0113654,88035.0,88021.0,0.00568]
[1766140772524,0.011365,88038.0,88021.0,0.00568]
[1766140773216,0.011365,88038.0,88024.0,0.0113666]
[1766140775326,0.011365,88038.0,88021.0,0.00568]
[1766140775529,0.0113647,88041.0,88027.0,0.0113663]
[1766140776127,0.0113647,88041.0,88021.0,0.00568]
[1766140776128,0.0113649,88039.0,88024.0,0.0113666]
[1766140778722,0.0113653,88035.0,88021.0,0.0170471]
[1766140779632,0.01153455,88044.0,88030.0,0.0113659]
[1766140779833,0.00568,88043.0,88032.0,0.0113656]
[1766140780027,0.00568,88043.0,88034.0,0.0113654]
[1766140780331,0.00568,88043.0,88022.0,0.011367]
[1766140780332,0.0113627,88056.0,88030.0,0.51148857]
[1766140780630,0.00568,88055.0,88032.0,0.0113656]
[1766140780834,0.0170429,88055.0,88040.0,0.0113645]
[1766140786733,0.0170429,88055.0,88042.0,0.0113644]
[1766140786934,0.00568,88054.0,88042.0,0.0113644]
[1766140787138,0.0113629,88055.0,88042.0,0.0113644]
[1766140787535,0.00568,88054.0,88042.0,0.0113644]
[1766140787736,0.00568,88053.0,88042.0,0.0113644]
[1766140787936,0.0113629,88055.0,88042.0,0.0113644]
[1766140788240,0.00568,88054.0,88042.0,0.0113644]
[1766140788843,0.0113629,88055.0,88042.0,0.0113644]
[1766140789140,0.00568,88054.0,88042.0,0.0113644]
[1766140789340,0.011363,88053.0,88039.0,0.00017035]
[1766140790036,0.011363,88053.0,88040.0,0.0113646]
[1766140790336,0.01153305,88056.0,88040.0,0.0113646]
[1766140790527,0.01153305,88056.0,88042.0,0.0113644]
[1766140790726,0.00568,88055.0,88044.0,0.0113641]
[1766140795133,0.00568,88054.0,88044.0,0.0113641]
[1766140797340,0.00568,88054.0,88041.0,0.0113644]
[1766140797845,0.00568,88054.0,88043.0,0.0113642]
[1766140798342,0.01153295,88056.0,88043.0,0.0113642]
[1766140798544,0.00568,88055.0,88043.0,0.0113642]
[1766140799447,0.00568,88055.0,88040.0,0.0113646]
[1766140799631,0.0113629,88054.0,88039.0,0.00017035]
[1766140799835,0.0113632,88052.0,88039.0,0.00017035]
[1766140807249,0.0113632,88052.0,88039.0,0.01153515]
[1766140807847,0.0113632,88052.0,88039.0,0.00017035]
[1766140811458,0.0113629,88054.0,88040.0,0.0113646]
[1766140812252,0.0113631,88053.0,88040.0,0.0113646]
[1766140812552,0.0113631,88053.0,88039.0,0.00017035]
[1766140813560,0.0113633,88051.0,88039.0,0.00017035]
[1766140816457,0.00568,88055.0,88039.0,0.00017035]
[1766140816754,0.0113632,88052.0,88039.0,0.00017035]
[1766140816953,0.0170428,88055.0,88039.0,0.00017035]
[1766140817451,0.0170428,88055.0,88040.0,0.0113647]
[1766140818251,0.011363,88053.0,88040.0,0.0113647]
[1766140818949,0.011363,88053.0,88039.0,0.00017035]
[1766140819554,0.0113633,88051.0,88039.0,0.00017035]
[1766140821757,0.011363,88053.0,88039.0,0.01153505]
[1766140824157,0.00568,88055.0,88041.0,0.0113645]
[1766140825659,0.00568,88055.0,88043.0,0.0113643]
[1766140827456,0.00017035,88056.0,88043.0,0.0113643]
[1766140827661,0.00568,88055.0,88043.0,0.0113643]
[1766140832356,0.0170428,88055.0,88040.0,0.52268912]
[1766140834967,0.011363,88053.0,88040.0,0.52268912]
[1766140837771,0.00017035,88056.0,88040.0,0.51132452]
[1766140839169,0.0113633,88051.0,88040.0,0.51132452]
[1766140839373,0.0113633,88051.0,88041.0,0.00568]
[1766140840067,0.00568,88053.0,88041.0,0.00568]
[1766140840458,0.0113631,88052.0,88041.0,0.00568]
[1766140840662,0.00568,88053.0,88041.0,0.00568]
[1766140840970,0.0113635,88050.0,88041.0,0.00568]
[1766140842969,0.0113637,88048.0,88041.0,0.00568]
[1766140843171,0.00568,88053.0,88041.0,0.00568]
[1766140843172,0.0113641,88045.0,88041.0,0.00568]
[1766140843976,0.0113638,88047.0,88041.0,0.00568]
[1766140845370,0.00568,88053.0,88041.0,0.00568]
[1766140845571,0.0113638,88048.0,88041.0,0.00568]
[1766140848275,0.00568,88053.0,88041.0,0.00568]
[1766140849272,0.0113635,88049.0,88041.0,0.00568]
[1766140849481,0.00568,88053.0,88041.0,0.00568]
[1766140850274,0.0113634,88050.0,88041.0,0.00568]
[1766140852876,0.00568,88052.0,88041.0,0.00568]
[1766140853966,0.0170432,88052.0,88041.0,0.00568]
[1766140859274,0.00568,88052.0,88041.0,0.0170445]
[1766140859478,0.00017035,88056.0,88045.0,0.011364]
[1766140859678,0.00568,88053.0,88045.0,0.011364]
[1766140863373,0.00568,88053.0,88047.0,0.0113637]
[1766140863569,0.00017035,88056.0,88041.0,0.00568]
[1766140863776,0.0113592,88083.0,88067.0,0.0113611]
[1766140864074,0.011357,88100.0,88071.0,0.0113606]
[1766140864075,0.00568,88082.0,88071.0,0.0113606]
[1766140864274,0.00568,88082.0,88070.0,0.51132452]
[1766140864986,0.00568,88082.0,88067.0,0.01717145]
[1766140865279,0.00568,88082.0,88067.0,0.00581035]
[1766140865479,0.00568,88082.0,88068.0,0.011361]
[1766140866385,0.0113591,88084.0,88068.0,0.011361]
[1766140866577,0.00568,88083.0,88068.0,0.011361]
[1766140868994,0.00568,88083.0,88070.0,0.51132452]
[1766140869283,0.01147188,88085.0,88070.0,0.51132452]
[1766140869487,0.00011298,88085.0,88076.0,0.01136]
[1766140869678,4.9e-07,88088.0,88076.0,0.01136]
[1766140869876,4.9e-07,88088.0,88078.0,0.51132452]
[1766140870182,0.09052,88113.0,88078.0,0.51132452]
[1766140870375,0.0130769,88101.0,88083.0,0.011359]
[1766140870578,0.51132452,88100.0,88083.0,0.011359]
[1766140870782,0.0113567,88102.0,88088.0,0.51132452]
[1766140870977,0.0113563,88105.0,88088.0,0.51700452]
[1766140871178,0.0170363,88105.0,88088.0,0.51717477]
[1766140871485,0.0170363,88105.0,88088.0,0.52853317]
[1766140872686,0.0113566,88103.0,88088.0,0.51717477]
[1766140873581,0.00568,88105.0,88088.0,0.52853327]
[1766140873781,0.0113565,88104.0,88088.0,0.52853327]
[1766140874982,0.0113565,88104.0,88088.0,0.01720875]
[1766140875187,0.0113565,88104.0,88090.0,0.51132452]
[1766140875383,0.0113565,88104.0,88090.0,0.51074899]
[1766140875888,0.0113568,88102.0,88088.0,0.00585025]
[1766140876075,0.0113568,88102.0,88090.0,0.51074899]
[1766140877089,0.0113568,88102.0,88088.0,0.00585025]
[1766140879692,0.011357,88100.0,88088.0,0.00585025]
[1766140882992,0.00568,88105.0,88088.0,0.00585025]
[1766140883193,0.0113573,88098.0,88088.0,0.00585025]
[1766140884892,0.00568,88097.0,88052.0,0.011363]
[1766140885087,0.0113591,88084.0,88068.0,0.011361]
[1766140885286,0.0113588,88086.0,88069.0,0.00568]
[1766140885493,0.00568,88087.0,88070.0,0.51074899]
[1766140885883,0.0113589,88085.0,88070.0,0.52227994]
[1766140886092,0.0113592,88083.0,88070.0,0.51091924]
[1766140886289,0.00016992,88087.0,88070.0,0.51091924]
[1766140886984,0.01152862,88087.0,88070.0,0.52228004]
[1766140887492,0.01152862,88087.0,88070.0,0.52247967]
[1766140891491,1.5566951,88240.0,88070.0,0.51111887]
[1766140891694,0.00176,88116.0,88090.0,0.51094862]
[1766140891903,0.0113561,88107.0,88090.0,0.52798682]
[1766140892087,0.0170361,88107.0,88090.0,0.52798682]
[1766140892288,0.00568,88107.0,88090.0,0.51662862]
[1766140892488,0.0113567,88102.0,88090.0,0.00568]
[1766140892786,0.0113567,88102.0,88090.0,0.00585025]
[1766140893599,0.0113567,88102.0,88087.0,0.0113585]
[1766140893600,0.0113578,88094.0,88077.0,0.0113598]
[1766140893791,0.0113578,88094.0,88078.0,2.3916]
[1766140894799,0.01152785,88095.0,88078.0,2.3916]
[1766140895000,0.01152785,88095.0,88079.0,0.0113596]
[1766140898403,0.0113579,88093.0,88078.0,2.3916]
[1766140898610,0.0113579,88093.0,88078.0,2.4029597]
[1766140899310,0.00017025,88095.0,88078.0,2.4029597]
[1766140900313,0.00017025,88095.0,88080.0,0.0113595]
[1766140900813,0.0113578,88094.0,88080.0,0.0113595]
[1766140901610,0.0113578,88094.0,88079.0,0.0113596]
[1766140903315,0.0113578,88094.0,88078.0,2.3916]
[1766140904216,0.0113578,88094.0,88081.0,0.0113593]
[1766140904422,0.0113578,88094.0,88082.0,0.00568]
[1766140907615,0.00017025,88095.0,88082.0,0.00568]
[1766140908216,0.0113584,88089.0,88082.0,0.00568]
[1766140908913,0.00017025,88095.0,88077.0,0.00017025]
[1766140908914,0.0113583,88090.0,88079.0,0.00568]
[1766140909224,0.0113582,88091.0,88079.0,0.00568]
[1766140912819,0.0113578,88094.0,88079.0,0.00568]
[1766140915137,0.0113578,88094.0,88080.0,0.0113595]
[1766140915426,0.00017025,88095.0,88082.0,0.0113592]
[1766140915927,0.00017025,88095.0,88079.0,0.00568]
[1766140916128,0.00017025,88095.0,88085.0,0.0113588]
[1766140916430,2.5e-07,88095.0,88087.0,0.0113586]
[1766140917630,2.5e-07,88095.0,88084.0,0.0113589]
[1766140918226,0.00288,88140.0,88092.0,0.0113579]
[1766140918431,0.51382862,88140.0,88112.0,0.0113553]
[1766140918723,0.0113528,88133.0,88114.0,0.0113551]
[1766140919029,0.0113525,88135.0,88115.0,0.00017025]
[1766140919430,0.00568,88134.0,88115.0,0.00017025]
[1766140920029,0.0113528,88133.0,88115.0,0.01152515]
[1766140920229,0.0113528,88133.0,88117.0,0.0113547]
[1766140920731,0.0113528,88133.0,88115.0,0.00017025]
[1766140921234,0.011353,88131.0,88115.0,0.00017025]
[1766140921727,0.011353,88131.0,88116.0,0.0113548]
[1766140921928,0.00568,88162.0,88121.0,0.51094862]
[1766140922126,0.0170291,88162.0,88133.0,0.00017025]
[1766140922325,0.00568,88162.0,88138.0,0.011352]
[1766140922626,0.0113493,88160.0,88138.0,0.011352]
[1766140922826,0.0113491,88161.0,88141.0,0.0113516]
[1766140923032,0.00568,88160.0,88141.0,0.0113516]
[1766140923329,0.0113479,88171.0,88148.0,0.0113507]
[1766140923521,0.00568,88165.0,88148.0,0.0113507]
[1766140923722,0.0113477,88172.0,88150.0,0.51094862]
[1766140923922,0.5161137,88180.0,88150.0,0.51094862]
[1766140923923,0.01651178,88180.0,88161.0,0.011349]
[1766140924125,0.0113469,88178.0,88162.0,0.00017015]
[1766140924325,0.00408,88179.0,88162.0,0.00017015]
[1766140925119,0.0113478,88171.0,88162.0,0.00017015]
[1766140925320,0.0113494,88159.0,88143.0,2.38524]
[1766140925526,0.0113494,88159.0,88147.0,0.0016]
[1766140926326,0.01135,88154.0,88144.0,0.00017015]
[1766140927131,0.0113495,88158.0,88144.0,0.00017015]
[1766140927433,0.0113499,88155.0,88144.0,0.00017015]
[1766140928525,0.0113494,88159.0,88144.0,0.00017015]
[1766140930136,0.0113497,88156.0,88144.0,0.00017015]
[1766140931238,0.00576982,88162.0,88144.0,1.5e-07]
[1766140931439,0.51094862,88160.0,88144.0,1.5e-07]
[1766140931832,0.00576982,88162.0,88144.0,1.5e-07]
[1766140932535,0.0113496,88158.0,88144.0,1.5e-07]
[1766140933142,0.0113498,88155.0,88144.0,1.5e-07]
[1766140933341,0.00568,88154.0,88144.0,1.5e-07]
[1766140933643,0.0113501,88153.0,88144.0,1.5e-07]
[1766140933936,0.00568,88154.0,88144.0,1.5e-07]
[1766140934127,0.0113511,88146.0,88132.0,0.00568]
[1766140934542,0.51094862,88150.0,88132.0,0.00568]
[1766140934740,0.0113515,88142.0,88132.0,0.00568]
[1766140935041,0.0113514,88143.0,88132.0,0.00568]
[1766140936641,0.00568,88146.0,88128.0,0.00017015]
[1766140936830,0.00585015,88146.0,88128.0,0.00017015]
[1766140937031,0.0113516,88142.0,88128.0,0.00017015]
[1766140937441,0.0113512,88145.0,88128.0,0.01152345]
[1766140938028,0.00585015,88146.0,88128.0,0.00017015]
[1766140938944,0.0113515,88142.0,88128.0,0.00017015]
[1766140941445,0.00585015,88146.0,88128.0,0.00017015]
[1766140941948,0.0113518,88140.0,88128.0,0.00017015]
[1766140942334,0.0113521,88138.0,88128.0,0.00017015]
[1766140942539,0.0113524,88136.0,88128.0,1.5e-07]
[1766140946153,0.0113501,88154.0,88128.0,1.5e-07]
[1766140946154,0.20004226,88221.0,88129.0,0.11914616]
[1766140946351,0.0113458,88187.0,88145.0,0.0113511]
[1766140946545,0.00568,88186.0,88160.0,0.51035698]
[1766140946743,0.00568,88185.0,88155.0,0.00568]
[1766140946952,0.00568,88185.0,88160.0,0.51035698]
[1766140947146,0.00017015,88181.0,88169.0,0.0113479]
[1766140947352,0.00017015,88181.0,88164.0,0.00017015]
[1766140947549,0.00236,88180.0,88164.0,0.00017015]
[1766140948242,0.00236,88180.0,88169.0,0.0113479]
[1766140948437,0.00236,88180.0,88171.0,0.0113477]
[1766140949847,0.00236,88180.0,88168.0,0.0113481]
[1766140950049,0.00236,88180.0,88164.0,1.5e-07]
[1766140950050,0.51223563,88180.0,88164.0,1.5e-07]
[1766140950242,0.52358233,88180.0,88160.0,0.50987563]
[1766140951243,0.011347,88178.0,88155.0,0.00568]
[1766140951454,0.011347,88178.0,88150.0,0.50987563]
[1766140951851,0.011347,88178.0,88162.0,0.0113489]
[1766140952360,0.0113472,88176.0,88161.0,0.00017015]
[1766140952745,0.0113468,88179.0,88161.0,0.00017015]
[1766140953153,0.51223563,88180.0,88161.0,0.00017015]
[1766140953356,0.0113478,88171.0,88156.0,0.0113496]
[1766140953549,0.0113497,88157.0,88136.0,0.06319638]
[1766140953858,0.00568,88156.0,88131.0,0.00568]
[1766140954051,0.00568,88156.0,88140.0,0.50987563]
[1766140954556,0.00568,88156.0,88143.0,0.0113513]
[1766140957753,0.00568,88156.0,88140.0,0.52122733]
[1766140957959,0.0170298,88156.0,88140.0,0.0113517]
[1766140958954,0.50987563,88150.0,88127.0,0.06337765]
[1766140959259,0.0113508,88148.0,88130.0,0.011353]
[1766140959457,0.0113511,88146.0,88129.0,0.0113532]
[1766140959759,0.0170307,88149.0,88130.0,0.50987563]
[1766140960061,0.0170307,88149.0,88131.0,0.00011394]
[1766140960451,0.0113509,88147.0,88132.0,0.0113527]
[1766140960655,0.0113512,88145.0,88131.0,0.00011394]
[1766140961560,0.0170307,88149.0,88132.0,0.0113528]
[1766140961750,0.0113509,88147.0,88132.0,0.0113528]
[1766140961949,0.0113509,88147.0,88131.0,0.00011394]
[1766140961950,0.00568,88149.0,88131.0,0.00011394]
[1766140962260,0.0113516,88142.0,88131.0,0.00011394]
[1766140962457,0.00568,88141.0,88131.0,0.00011394]
[1766140963465,0.51555563,88141.0,88122.0,0.0170341]
[1766140963655,0.0170317,88141.0,88122.0,0.0170341]
[1766140963857,0.50987563,88132.0,88107.0,0.00568]
[1766140964049,0.0113535,88127.0,88110.0,0.50987563]
[1766140964249,0.0113538,88125.0,88108.0,0.0113559]
[1766140964455,0.00568,88124.0,88108.0,0.0113559]
[1766140964750,0.00568,88124.0,88110.0,0.0113556]
[1766140964964,0.00568,88124.0,88113.0,0.0113552]
[1766140965158,0.00568,88123.0,88113.0,0.0113552]
[1766140966156,0.00568,88123.0,88110.0,0.52123123]
[1766140967064,0.00568,88123.0,88112.0,0.0113553]
[1766140968755,0.00568,88123.0,88110.0,0.50987563]
[1766140969065,0.00568,88123.0,88118.0,0.0113546]
[1766140969658,0.00017015,88125.0,88118.0,0.0113546]
[1766140969865,0.0044,88124.0,88118.0,0.0113546]
[1766140970068,0.00364,88123.0,88110.0,0.52123123]
[1766140970365,0.00364,88123.0,88110.0,0.50987563]
[1766140971966,0.00364,88123.0,88119.0,0.0113545]
[1766140974067,5e-08,88125.0,88110.0,0.50987563]
[1766140974271,0.011349,88162.0,88115.0,0.50987563]
[1766140974568,0.011349,88162.0,88134.0,0.0113525]
[1766140974569,0.0113507,88149.0,88134.0,0.0113525]
[1766140974769,0.0113509,88147.0,88131.0,0.0113528]
[1766140975269,0.0113512,88145.0,88131.0,0.0113528]
[1766140977470,0.0113514,88143.0,88130.0,0.00017015]
[1766140977961,0.0113514,88143.0,88130.0,0.01152315]
[1766140980272,0.0113517,88141.0,88130.0,0.00017015]
[1766140980465,0.011352,88139.0,88130.0,0.00017015]
[1766140980870,0.00568,88142.0,88130.0,0.00017015]
[1766140982474,0.00568,88142.0,88122.0,0.00568]
[1766140982675,0.0170315,88142.0,88115.0,0.0113549]
[1766140983074,0.0113517,88141.0,88115.0,0.0113549]
[1766140983777,0.00017015,88137.0,88112.0,0.0131554]
[1766140984975,0.0113533,88129.0,88114.0,0.0113551]
[1766140985274,0.00568,88128.0,88114.0,0.0113551]
[1766140986580,0.00568,88128.0,88111.0,0.0113555]
[1766140986581,0.0113535,88127.0,88111.0,0.0113555]
[1766140986977,0.0113537,88125.0,88111.0,0.0113555]
[1766140987278,0.0113537,88125.0,88108.0,0.0113558]
[1766140987470,0.011354,88123.0,88108.0,0.0113558]
[1766140988379,0.011354,88123.0,88110.0,0.0113556]
[1766140989179,0.0113537,88126.0,88106.0,0.00568]
[1766140989681,0.0113537,88126.0,88112.0,0.0113553]
[1766140994486,0.0113535,88127.0,88106.0,0.00568]
[1766140995086,0.00568,88128.0,88114.0,0.0113551]
[1766140996586,0.0170333,88128.0,88114.0,0.0113551]
[1766140997489,0.0113536,88126.0,88111.0,0.0113554]
[1766140997790,0.00568,88128.0,88106.0,0.00568]
[1766140997988,0.0170334,88128.0,88110.0,0.51055824]
[1766140998180,0.0170334,88128.0,88114.0,0.0113551]
[1766140998887,0.0170334,88128.0,88116.0,0.0113548]
[1766140999786,0.00568,88128.0,88117.0,0.0113547]
[1766141000390,0.0170334,88128.0,88114.0,0.0113551]
[1766141003597,0.0113537,88125.0,88106.0,0.00568]
[1766141003888,0.51055824,88116.0,88086.0,0.0113587]
[1766141004091,0.51055824,88110.0,88079.0,2.38476]
[1766141004289,0.00568,88109.0,88089.0,0.0113582]
[1766141004489,0.0113562,88106.0,88091.0,0.011358]
[1766141004690,0.00568,88109.0,88093.0,0.01148211]
[1766141006193,0.0113559,88108.0,88093.0,0.01148211]
[1766141007394,0.0113559,88108.0,88093.0,0.00012431]
[1766141007598,0.0113562,88106.0,88093.0,0.00012431]
[1766141007796,0.00568,88105.0,88093.0,0.00012431]
[1766141008195,0.00568,88105.0,88093.0,0.01148211]
[1766141008996,0.0113566,88103.0,88093.0,0.00012431]
[1766141009895,0.0113571,88099.0,88082.0,0.0113592]
[1766141010090,0.00568,88098.0,88082.0,0.0113592]
[1766141010287,0.00568,88098.0,88081.0,0.0113593]
[1766141010489,0.51055824,88091.0,88072.0,0.06850995]
[1766141010805,0.00585025,88090.0,88072.0,0.00568]
[1766141011202,0.00585025,88090.0,88076.0,0.0113599]
[1766141011500,0.00585025,88090.0,88072.0,0.00568]
[1766141012293,0.00585025,88090.0,88078.0,0.0113597]
[1766141013002,0.00585025,88090.0,88072.0,0.00568]
[1766141013308,0.00585025,88090.0,88072.0,0.0170404]
[1766141013490,0.00248,88092.0,88090.0,0.0113582]
[1766141013803,0.00292,88092.0,88090.0,0.0113582]
[1766141014191,0.00312,88093.0,88090.0,0.0113582]
[1766141014398,0.0032,88095.0,88090.0,0.0113582]
[1766141014594,0.00336,88095.0,88090.0,0.0113582]
[1766141015805,0.00344,88096.0,88090.0,0.0113582]
[1766141016193,0.00017025,88100.0,88092.0,0.0113579]
[1766141016396,0.00348,88099.0,88092.0,0.0113579]
[1766141017605,0.00348,88099.0,88089.0,0.0113583]
[1766141018004,0.00348,88099.0,88091.0,0.011358]
[1766141020711,0.00348,88099.0,88093.0,0.0113578]
[1766141021114,0.00348,88099.0,88092.0,0.0113579]
[1766141023209,0.00348,88099.0,88094.0,0.0113577]
[1766141024116,0.00348,88099.0,88091.0,0.011358]
[1766141025016,0.00017025,88100.0,88093.0,0.0113578]
[1766141025215,0.00352,88099.0,88093.0,0.0113578]
[1766141026714,0.00017025,88100.0,88083.0,0.00017025]
[1766141026715,0.00017025,88100.0,88083.0,0.01152925]
[1766141026911,2.5e-07,88100.0,88094.0,0.0113577]
[1766141029421,2.5e-07,88100.0,88083.0,0.00017025]
[1766141029607,2.5e-07,88100.0,88092.0,0.0113579]
[1766141033624,2.5e-07,88100.0,88094.0,0.0113577]
[1766141035317,2.5e-07,88100.0,88083.0,0.00017025]
[1766141036230,2.5e-07,88100.0,88093.0,0.0113577]
[1766141037329,0.00444,88101.0,88086.0,0.0113586]
[1766141037824,0.00444,88101.0,88083.0,0.00017025]
[1766141038025,0.00444,88101.0,88094.0,0.0113577]
[1766141038225,0.00444,88101.0,88095.0,0.0113575]
[1766141038426,0.00461025,88101.0,88095.0,0.0113575]
[1766141040031,2.5e-07,88101.0,88095.0,0.0113575]
[1766141040621,2.5e-07,88101.0,88092.0,0.0113578]
[1766141041237,2.5e-07,88101.0,88094.0,0.0113577]
[1766141041441,2.5e-07,88101.0,88096.0,0.0113574]
[1766141042036,2.5e-07,88101.0,88093.0,0.0113577]
[1766141044138,2.5e-07,88101.0,88083.0,0.00017025]
[1766141044330,2.5e-07,88102.0,88083.0,0.00017025]
[1766141045037,0.51086897,88120.0,88083.0,0.00017025]
[1766141045240,0.00017025,88110.0,88096.0,0.0113573]
[1766141045429,0.00568,88109.0,88089.0,0.0113582]
[1766141045630,0.00568,88109.0,88097.0,0.0113573]
[1766141049238,0.00017025,88110.0,88090.0,0.51086897]
[1766141049435,0.00568,88109.0,88090.0,0.51086897]
[1766141049744,0.00568,88109.0,88087.0,0.0113586]
[1766141051241,0.00017025,88110.0,88097.0,0.0113572]
[1766141051443,0.00568,88109.0,88097.0,0.0113572]
[1766141051635,0.00568,88109.0,88099.0,0.011357]
[1766141051834,0.00568,88109.0,88090.0,0.0113582]
[1766141053242,0.00568,88109.0,88099.0,0.011357]
[1766141054342,0.00017025,88110.0,88099.0,0.011357]
[1766141054542,0.00284,88109.0,88099.0,0.011357]
[1766141058838,0.0141958,88109.0,88095.0,0.0113575]
[1766141059037,0.00284,88109.0,88097.0,0.0113573]
[1766141059646,0.00284,88109.0,88099.0,0.0113571]
[1766141059949,0.00284,88109.0,88096.0,0.0113574]
[1766141060147,0.00284,88109.0,88098.0,0.0113572]
[1766141061642,0.01152595,88110.0,88098.0,0.0113572]
[1766141061944,0.00568,88108.0,88098.0,0.0113572]
[1766141062750,0.00568,88108.0,88098.0,0.0113571]
[1766141063047,0.0170359,88108.0,88095.0,0.0113575]
[1766141065151,0.00568,88108.0,88095.0,0.0113575]
[1766141066148,0.00568,88108.0,88092.0,0.0113579]
[1766141066447,0.00568,88108.0,88083.0,0.00017025]
[1766141066652,0.00568,88108.0,88094.0,0.0113576]
[1766141068456,0.00568,88108.0,88096.0,0.0113574]
[1766141070951,0.00568,88108.0,88086.0,0.0113586]
[1766141072256,0.017036,88108.0,88083.0,0.00017025]
[1766141072453,0.017036,88108.0,88091.0,0.011358]
[1766141074756,0.017036,88108.0,88093.0,0.0113577]
[1766141076254,0.00568,88108.0,88095.0,0.0113575]
[1766141081260,0.01152605,88110.0,88095.0,0.0113575]
[1766141081454,0.00568,88109.0,88097.0,0.0113572]
[1766141081655,0.00568,88109.0,88102.0,0.0113566]
[1766141082956,0.00017025,88110.0,88102.0,0.0113566]
[1766141083158,0.00568,88108.0,88099.0,0.011357]
[1766141083653,0.0113542,88122.0,88105.0,0.0113562]
[1766141083859,0.00568,88121.0,88110.0,0.51067314]
[1766141084058,0.00568,88120.0,88109.0,0.0113557]
[1766141085743,0.00017025,88123.0,88111.0,0.0113554]
[1766141085744,2.5e-07,88123.0,88111.0,0.0113554]
[1766141085950,0.00568,88122.0,88113.0,0.0113551]
[1766141086546,0.00568,88121.0,88115.0,0.0113549]
[1766141086751,0.00432,88120.0,88115.0,0.0113549]
[1766141086952,0.00568,88120.0,88115.0,0.0113549]
[1766141089063,0.00568,88120.0,88112.0,0.0113553]
[1766141091463,0.00568,88120.0,88114.0,0.0113551]
[1766141093165,0.00568,88121.0,88116.0,0.0113548]
[1766141094761,0.00568,88121.0,88106.0,0.00017025]
[1766141094970,0.011355,88115.0,88106.0,0.00017025]
[1766141097768,0.00568,88114.0,88106.0,0.00017025]
[1766141100170,0.00568,88114.0,88107.0,0.011356]
[1766141103073,0.00017025,88126.0,88106.0,0.00017025]
[1766141103262,0.00568,88125.0,88110.0,0.51067314]
[1766141103460,0.0113541,88122.0,88108.0,0.0113559]
[1766141105875,0.0170338,88125.0,88110.0,0.0113556]
[1766141106276,0.00017025,88126.0,88106.0,0.00017025]
[1766141106579,0.0113546,88118.0,88106.0,0.00017025]
[1766141106764,0.0170348,88117.0,88101.0,0.0113567]
[1766141106960,0.0170348,88117.0,88097.0,0.00568]
[1766141106961,0.00017025,88126.0,88107.0,0.52202914]
[1766141107171,2.5e-07,88126.0,88110.0,0.51067314]
[1766141107367,2.5e-07,88126.0,88119.0,0.0113544]